[Event "Skol-SM i Schack 2024, Grupp A"]
[Site "Arena Varberg, Kattegattsvagen 26, Varberg, Sweden"]
[Date "2024.10.11"]
[Round "2.6"]
[White "Persson, Sebastian"]
[Black "Persson Holm, Simon"]
[Result "0-1"]
[TimeControl "45 minutes + 10 seconds per move from move one."]
[WhiteFideId "1764187"]
[BlackFideId "1744380"]
[WhiteElo "1860"]
[BlackElo "1737"]

1. c4 {[%clk 00:45:16]} {[%emt 00:00:04]} c6 {[%clk 00:45:18]} {[%emt
00:00:04]} 2. Nf3 {[%clk 00:45:21]} {[%emt 00:00:04]} d5 {[%clk 00:45:22]}
{[%emt 00:00:05]} 3. cxd5 {[%clk 00:45:26]} {[%emt 00:00:05]} cxd5 {[%clk
00:45:26]} {[%emt 00:00:07]} 4. g3 {[%clk 00:45:31]} {[%emt 00:00:04]} Nf6
{[%clk 00:45:09]} {[%emt 00:00:28]} 5. Bg2 {[%clk 00:45:36]} {[%emt 00:00:04]}
Nc6 {[%clk 00:44:52]} {[%emt 00:00:28]} 6. O-O {[%clk 00:45:39]} {[%emt
00:00:06]} Bf5 {[%clk 00:44:45]} {[%emt 00:00:18]} 7. d3 {[%clk 00:45:36]}
{[%emt 00:00:13]} h6 {[%clk 00:44:23]} {[%emt 00:00:32]} 8. b3 {[%clk
00:44:46]} {[%emt 00:01:00]} e6 {[%clk 00:43:09]} {[%emt 00:01:25]} 9. Bb2
{[%clk 00:44:26]} {[%emt 00:00:28]} Be7 {[%clk 00:42:46]} {[%emt 00:00:33]} 10.
Nbd2 {[%clk 00:43:22]} {[%emt 00:01:13]} O-O {[%clk 00:42:40]} {[%emt
00:00:17]} 11. Re1 {[%clk 00:42:56]} {[%emt 00:00:35]} Rc8 {[%clk 00:37:33]}
{[%emt 00:05:18]} 12. Rc1 {[%clk 00:41:45]} {[%emt 00:01:21]} Qb6 {[%clk
00:35:29]} {[%emt 00:02:14]} 13. h3 {[%clk 00:38:50]} {[%emt 00:03:04]} Bc5
{[%clk 00:31:43]} {[%emt 00:03:57]} 14. Rf1 {[%clk 00:31:55]} {[%emt 00:07:05]}
Rfd8 {[%clk 00:30:23]} {[%emt 00:01:30]} 15. Bxf6 {[%clk 00:27:44]} {[%emt
00:04:20]} gxf6 {[%clk 00:29:23]} {[%emt 00:01:12]} 16. Nh4 {[%clk 00:27:40]}
{[%emt 00:00:13]} Bh7 {[%clk 00:29:04]} {[%emt 00:00:29]} 17. e4 {[%clk
00:25:33]} {[%emt 00:02:17]} dxe4 {[%clk 00:27:15]} {[%emt 00:01:59]} 18. Qh5
{[%clk 00:25:24]} {[%emt 00:00:19]} Rxd3 {[%clk 00:23:50]} {[%emt 00:03:35]} 19.
Nxe4 {[%clk 00:19:10]} {[%emt 00:06:24]} Bxe4 {[%clk 00:22:34]} {[%emt
00:01:26]} 20. Bxe4 {[%clk 00:19:02]} {[%emt 00:00:18]} Rxg3+ {[%clk 00:21:53]}
{[%emt 00:00:51]} 21. Kh2 {[%clk 00:19:10]} {[%emt 00:00:02]} Bxf2 {[%clk
00:17:09]} {[%emt 00:04:54]} 22. Qxh6 {[%clk 00:03:32]} {[%emt 00:15:48]} Rg7
{[%clk 00:12:52]} {[%emt 00:04:27]} 23. Qxf6 {[%clk 00:01:39]} {[%emt
00:02:03]} Bd4 {[%clk 00:08:42]} {[%emt 00:04:20]} 24. Qf3 {[%clk 00:01:01]}
{[%emt 00:00:48]} Qc7+ {[%clk 00:08:18]} {[%emt 00:00:34]} 25. Kh1 {[%clk
00:00:55]} {[%emt 00:00:16]} Rg3 {[%clk 00:06:32]} {[%emt 00:01:56]} 26. Qf4
{[%clk 00:00:11]} {[%emt 00:00:54]} Qxf4 {[%clk 00:03:59]} {[%emt 00:02:43]} 27.
Rxf4 {[%clk 00:00:20]} {[%emt 00:00:01]} Be3 {[%clk 00:04:04]} {[%emt
00:00:04]} 28. Rff1 {[%clk 00:00:14]} {[%emt 00:00:17]} Bxc1 {[%clk 00:04:01]}
0-1

[Event "Skol-SM i Schack 2024, Grupp A"]
[Site "Arena Varberg, Kattegattsvagen 26, Varberg, Sweden"]
[Date "2024.10.11"]
[Round "1.3"]
[White "Johansson, William"]
[Black "Emanuelsson, Aron"]
[Result "1/2-1/2"]
[TimeControl "45 minutes + 10 seconds per move from move one."]
[WhiteFideId "1744070"]
[BlackFideId "1780069"]
[WhiteElo "1971"]
[BlackElo "1720"]

1. b3 {[%clk 00:45:15]} {[%emt 00:00:04]} d5 {[%clk 00:45:19]} {[%emt
00:00:02]} 2. Bb2 {[%clk 00:45:23]} {[%emt 00:00:02]} c6 {[%clk 00:45:20]}
{[%emt 00:00:09]} 3. g3 {[%clk 00:45:12]} {[%emt 00:00:21]} Nf6 {[%clk
00:45:28]} {[%emt 00:00:02]} 4. Bg2 {[%clk 00:45:10]} {[%emt 00:00:12]} Bf5
{[%clk 00:45:34]} {[%emt 00:00:04]} 5. Nf3 {[%clk 00:45:07]} {[%emt 00:00:13]}
e6 {[%clk 00:45:36]} {[%emt 00:00:08]} 6. O-O {[%clk 00:45:13]} {[%emt
00:00:03]} h6 {[%clk 00:45:39]} {[%emt 00:00:08]} 7. c4 {[%clk 00:45:18]}
{[%emt 00:00:05]} Be7 {[%clk 00:45:47]} {[%emt 00:00:01]} 8. d4 {[%clk
00:45:07]} {[%emt 00:00:21]} O-O {[%clk 00:45:54]} {[%emt 00:00:04]} 9. Nbd2
{[%clk 00:43:48]} {[%emt 00:01:28]} Nbd7 {[%clk 00:46:00]} {[%emt 00:00:05]} 10.
Re1 {[%clk 00:43:49]} {[%emt 00:00:08]} Ne4 {[%clk 00:45:46]} {[%emt 00:00:24]}
11. Ne5 {[%clk 00:43:20]} {[%emt 00:00:39]} Nxd2 {[%clk 00:43:24]} {[%emt
00:02:33]} 12. Qxd2 {[%clk 00:43:13]} {[%emt 00:00:16]} Nxe5 {[%clk 00:43:21]}
{[%emt 00:00:13]} 13. dxe5 {[%clk 00:43:21]} {[%emt 00:00:03]} dxc4 {[%clk
00:42:50]} {[%emt 00:00:42]} 14. Qxd8 {[%clk 00:43:14]} {[%emt 00:00:16]} Rfxd8
{[%clk 00:42:22]} {[%emt 00:00:38]} 15. e4 {[%clk 00:43:21]} {[%emt 00:00:02]}
Bg6 {[%clk 00:41:53]} {[%emt 00:00:39]} 16. bxc4 {[%clk 00:43:15]} {[%emt
00:00:16]} Rd7 {[%clk 00:41:11]} {[%emt 00:00:53]} 17. Rad1 {[%clk 00:33:57]}
{[%emt 00:09:27]} Rad8 {[%clk 00:41:18]} {[%emt 00:00:04]} 18. Rxd7 {[%clk
00:34:04]} {[%emt 00:00:03]} Rxd7 {[%clk 00:41:27]} {[%emt 00:00:01]} 19. Kf1
{[%clk 00:34:00]} {[%emt 00:00:14]} Bb4 {[%clk 00:35:29]} {[%emt 00:06:08]} 20.
Rb1 {[%clk 00:28:25]} {[%emt 00:05:44]} Rd2 {[%clk 00:34:57]} {[%emt 00:00:43]}
21. Bd4 {[%clk 00:28:29]} {[%emt 00:00:06]} c5 {[%clk 00:33:31]} {[%emt
00:01:36]} 22. a3 {[%clk 00:27:58]} {[%emt 00:00:42]} Bxa3 {[%clk 00:29:34]}
{[%emt 00:04:06]} 23. Be3 {[%clk 00:27:53]} {[%emt 00:00:14]} Rb2 {[%clk
00:28:06]} {[%emt 00:01:38]} 24. Rxb2 {[%clk 00:27:49]} {[%emt 00:00:15]} Bxb2
{[%clk 00:28:15]} {[%emt 00:00:01]} 25. Bxc5 {[%clk 00:27:58]} {[%emt
00:00:02]} b6 {[%clk 00:27:36]} {[%emt 00:00:48]} 26. Bd6 {[%clk 00:28:03]}
{[%emt 00:00:04]} f6 {[%clk 00:26:31]} {[%emt 00:01:16]} 27. f4 {[%clk
00:27:43]} {[%emt 00:00:30]} fxe5 {[%clk 00:26:29]} {[%emt 00:00:12]} 28. fxe5
{[%clk 00:27:39]} {[%emt 00:00:13]} a5 {[%clk 00:25:48]} {[%emt 00:00:52]} 29.
Ke2 {[%clk 00:27:07]} {[%emt 00:00:40]} Bh5+ {[%clk 00:25:34]} {[%emt
00:00:26]} 30. Kd2 {[%clk 00:26:55]} {[%emt 00:00:22]} a4 {[%clk 00:25:23]}
{[%emt 00:00:21]} 31. Bh3 {[%clk 00:23:23]} {[%emt 00:03:42]} Kf7 {[%clk
00:20:16]} {[%emt 00:05:17]} 32. g4 {[%clk 00:23:25]} {[%emt 00:00:08]} a3
{[%clk 00:19:02]} {[%emt 00:01:24]} 33. Kc2 {[%clk 00:20:57]} {[%emt 00:02:38]}
Bg6 {[%clk 00:19:10]} {[%emt 00:00:02]} 34. Bg2 {[%clk 00:21:01]} {[%emt
00:00:05]} h5 {[%clk 00:18:43]} {[%emt 00:00:37]} 35. h3 {[%clk 00:20:25]}
{[%emt 00:00:46]} hxg4 {[%clk 00:18:40]} {[%emt 00:00:14]} 36. hxg4 {[%clk
00:15:55]} {[%emt 00:04:40]} Kg8 {[%clk 00:17:12]} {[%emt 00:01:37]} 37. Kb3
{[%clk 00:13:07]} {[%emt 00:02:59]} Kh7 {[%clk 00:16:59]} {[%emt 00:00:23]} 38.
g5 {[%clk 00:11:38]} {[%emt 00:01:39]} Be8 {[%clk 00:16:51]} {[%emt 00:00:18]}
39. Bxa3 {[%clk 00:11:14]} {[%emt 00:00:34]} Bxa3 {[%clk 00:16:32]} {[%emt
00:00:29]} 40. Kxa3 {[%clk 00:11:14]} {[%emt 00:00:09]} Kg6 {[%clk 00:16:41]}
{[%emt 00:00:02]} 41. Bh3 {[%clk 00:10:50]} {[%emt 00:00:34]} Bd7 {[%clk
00:16:44]} {[%emt 00:00:07]} 42. Kb4 {[%clk 00:10:44]} {[%emt 00:00:16]} Kxg5
{[%clk 00:16:49]} {[%emt 00:00:06]} 43. c5 {[%clk 00:10:49]} {[%emt 00:00:04]}
bxc5+ {[%clk 00:14:40]} {[%emt 00:02:18]} 44. Kxc5 {[%clk 00:10:57]} {[%emt
00:00:03]} Kf4 {[%clk 00:09:46]} {[%emt 00:05:04]} 45. Kd6 {[%clk 00:10:57]}
{[%emt 00:00:09]} Kxe4 {[%clk 00:08:15]} {[%emt 00:01:41]} 46. Bxe6 {[%clk
00:10:47]} {[%emt 00:00:21]} Be8 {[%clk 00:07:11]} {[%emt 00:01:14]} 47. Bd5+
{[%clk 00:10:41]} {[%emt 00:00:16]} Kf5 {[%clk 00:06:58]} {[%emt 00:00:23]} 48.
Be6+ {[%clk 00:10:38]} {[%emt 00:00:13]} Kf4 {[%clk 00:06:50]} {[%emt
00:00:18]} 49. Bc8 {[%clk 00:09:50]} {[%emt 00:00:58]} g5 {[%clk 00:06:19]}
{[%emt 00:00:41]} 50. e6 {[%clk 00:09:57]} {[%emt 00:00:03]} g4 {[%clk
00:05:59]} {[%emt 00:00:30]} 51. Ke7 {[%clk 00:09:37]} {[%emt 00:00:30]} g3
{[%clk 00:05:19]} {[%emt 00:00:50]} 52. Bb7 {[%clk 00:08:47]} {[%emt 00:01:00]}
Bh5 {[%clk 00:05:05]} {[%emt 00:00:23]} 53. Kd8 {[%clk 00:08:01]} {[%emt
00:00:56]} Ke3 {[%clk 00:04:33]} {[%emt 00:00:43]} 54. e7 {[%clk 00:08:03]}
{[%emt 00:00:07]} Kf2 {[%clk 00:04:40]} {[%emt 00:00:03]} 1/2-1/2

[Event "Skol-SM i Schack 2024, Grupp A"]
[Site "Arena Varberg, Kattegattsvagen 26, Varberg, Sweden"]
[Date "2024.10.11"]
[Round "2.7"]
[White "Schriever-Abeln, Marius"]
[Black "Johansson, William"]
[Result "0-1"]
[TimeControl "45 minutes + 10 seconds per move from move one."]
[WhiteFideId "1752650"]
[BlackFideId "1744070"]
[WhiteElo "2009"]
[BlackElo "1971"]

1. d4 {[%clk 00:45:18]} {[%emt 00:00:01]} Nf6 {[%clk 00:45:19]} {[%emt
00:00:02]} 2. c4 {[%clk 00:45:26]} {[%emt 00:00:02]} e6 {[%clk 00:45:27]}
{[%emt 00:00:02]} 3. Nf3 {[%clk 00:45:33]} {[%emt 00:00:02]} b6 {[%clk
00:45:36]} {[%emt 00:00:01]} 4. g3 {[%clk 00:45:39]} {[%emt 00:00:03]} Bb4+
{[%clk 00:44:27]} {[%emt 00:01:21]} 5. Bd2 {[%clk 00:45:39]} {[%emt 00:00:09]}
Be7 {[%clk 00:44:34]} {[%emt 00:00:04]} 6. Bg2 {[%clk 00:45:38]} {[%emt
00:00:11]} Bb7 {[%clk 00:44:42]} {[%emt 00:00:02]} 7. Nc3 {[%clk 00:45:21]}
{[%emt 00:00:27]} c6 {[%clk 00:42:45]} {[%emt 00:02:07]} 8. e4 {[%clk
00:43:26]} {[%emt 00:02:04]} d5 {[%clk 00:42:42]} {[%emt 00:00:13]} 9. e5
{[%clk 00:42:12]} {[%emt 00:01:25]} Ne4 {[%clk 00:41:15]} {[%emt 00:01:37]} 10.
O-O {[%clk 00:35:45]} {[%emt 00:06:36]} Nxc3 {[%clk 00:40:16]} {[%emt
00:01:10]} 11. Bxc3 {[%clk 00:34:35]} {[%emt 00:01:19]} dxc4 {[%clk 00:40:14]}
{[%emt 00:00:12]} 12. a4 {[%clk 00:32:33]} {[%emt 00:02:13]} b5 {[%clk
00:36:30]} {[%emt 00:03:54]} 13. Qc2 {[%clk 00:28:38]} {[%emt 00:04:05]} Qc7
{[%clk 00:26:34]} {[%emt 00:10:05]} 14. axb5 {[%clk 00:23:17]} {[%emt
00:05:32]} cxb5 {[%clk 00:26:41]} {[%emt 00:00:03]} 15. Ba5 {[%clk 00:23:14]}
{[%emt 00:00:12]} Qd7 {[%clk 00:24:56]} {[%emt 00:01:55]} 16. b3 {[%clk
00:19:41]} {[%emt 00:03:43]} cxb3 {[%clk 00:24:56]} {[%emt 00:00:10]} 17. Qxb3
{[%clk 00:19:50]} {[%emt 00:00:02]} Bd5 {[%clk 00:21:05]} {[%emt 00:04:00]} 18.
Qb2 {[%clk 00:18:34]} {[%emt 00:01:26]} Qb7 {[%clk 00:19:51]} {[%emt 00:01:25]}
19. Nh4 {[%clk 00:07:54]} {[%emt 00:10:49]} Bxh4 {[%clk 00:14:11]} {[%emt
00:05:50]} 20. Bxd5 {[%clk 00:07:58]} {[%emt 00:00:07]} Qxd5 {[%clk 00:14:17]}
{[%emt 00:00:03]} 21. gxh4 {[%clk 00:08:06]} {[%emt 00:00:02]} Nc6 {[%clk
00:11:59]} {[%emt 00:02:28]} 22. Rfd1 {[%clk 00:02:09]} {[%emt 00:06:07]} O-O
{[%clk 00:10:19]} {[%emt 00:01:51]} 23. Bc7 {[%clk 00:02:13]} {[%emt 00:00:05]}
a5 {[%clk 00:06:33]} {[%emt 00:03:56]} 24. Bd6 {[%clk 00:01:36]} {[%emt
00:00:47]} Rfc8 {[%clk 00:06:13]} {[%emt 00:00:30]} 25. h5 {[%clk 00:01:27]}
{[%emt 00:00:20]} Qe4 {[%clk 00:05:18]} {[%emt 00:01:04]} 26. h6 {[%clk
00:00:55]} {[%emt 00:00:42]} gxh6 {[%clk 00:04:19]} {[%emt 00:01:09]} 27. Ra3
{[%clk 00:00:27]} {[%emt 00:00:38]} Kh8 {[%clk 00:03:52]} {[%emt 00:00:37]} 28.
Rg3 {[%clk 00:00:34]} {[%emt 00:00:03]} Rg8 {[%clk 00:03:18]} {[%emt 00:00:44]}
29. Rdd3 {[%clk 00:00:22]} {[%emt 00:00:22]} Rxg3+ {[%clk 00:02:13]} {[%emt
00:01:15]} 30. Rxg3 {[%clk 00:00:30]} {[%emt 00:00:02]} Nxd4 {[%clk 00:02:17]}
{[%emt 00:00:06]} 31. Be7 {[%clk 00:00:12]} {[%emt 00:00:27]} Qxe5 {[%clk
00:01:42]} {[%emt 00:00:46]} 32. Re3 {[%clk 00:00:12]} {[%emt 00:00:10]} Nf3+
{[%clk 00:01:38]} {[%emt 00:00:14]} 33. Rxf3 {[%clk 00:00:12]} {[%emt
00:00:11]} Qxb2 {[%clk 00:01:46]} {[%emt 00:00:02]} 0-1

[Event "Skol-SM i Schack 2024, Grupp A"]
[Site "Arena Varberg, Kattegattsvagen 26, Varberg, Sweden"]
[Date "2024.10.11"]
[Round "1.4"]
[White "Walter, Fridolf"]
[Black "Joensson, Oscar"]
[Result "0-1"]
[TimeControl "45 minutes + 10 seconds per move from move one."]
[WhiteFideId "1753347"]
[BlackFideId "1729977"]
[WhiteElo "1708"]
[BlackElo "1955"]

1. e4 {[%clk 00:45:18]} {[%emt 00:00:01]} c6 {[%clk 00:45:19]} {[%emt
00:00:02]} 2. d4 {[%clk 00:45:21]} {[%emt 00:00:06]} d5 {[%clk 00:45:27]}
{[%emt 00:00:02]} 3. Nc3 {[%clk 00:45:24]} {[%emt 00:00:07]} dxe4 {[%clk
00:45:35]} {[%emt 00:00:03]} 4. Nxe4 {[%clk 00:45:28]} {[%emt 00:00:05]} Nf6
{[%clk 00:45:42]} {[%emt 00:00:03]} 5. Nxf6+ {[%clk 00:44:45]} {[%emt
00:00:53]} exf6 {[%clk 00:45:50]} {[%emt 00:00:03]} 6. Nf3 {[%clk 00:44:16]}
{[%emt 00:00:38]} Bd6 {[%clk 00:45:56]} {[%emt 00:00:04]} 7. Bd3 {[%clk
00:43:56]} {[%emt 00:00:30]} O-O {[%clk 00:46:02]} {[%emt 00:00:04]} 8. O-O
{[%clk 00:43:36]} {[%emt 00:00:30]} Bg4 {[%clk 00:45:31]} {[%emt 00:00:41]} 9.
c3 {[%clk 00:42:48]} {[%emt 00:00:58]} Nd7 {[%clk 00:45:12]} {[%emt 00:00:29]}
10. Bc2 {[%clk 00:42:00]} {[%emt 00:00:58]} Re8 {[%clk 00:44:36]} {[%emt
00:00:46]} 11. Qd3 {[%clk 00:41:22]} {[%emt 00:00:47]} Nf8 {[%clk 00:44:32]}
{[%emt 00:00:14]} 12. Bd2 {[%clk 00:40:19]} {[%emt 00:01:13]} Qc7 {[%clk
00:43:57]} {[%emt 00:00:46]} 13. h3 {[%clk 00:40:00]} {[%emt 00:00:28]} Bh5
{[%clk 00:44:05]} {[%emt 00:00:03]} 14. Nh4 {[%clk 00:38:04]} {[%emt 00:02:05]}
Be2 {[%clk 00:42:48]} {[%emt 00:01:27]} 15. Qf5 {[%clk 00:36:06]} {[%emt
00:02:08]} g6 {[%clk 00:41:53]} {[%emt 00:01:06]} 16. Qxf6 {[%clk 00:32:42]}
{[%emt 00:03:33]} Be7 {[%clk 00:42:01]} {[%emt 00:00:02]} 17. Qe5 {[%clk
00:31:38]} {[%emt 00:01:15]} Qxe5 {[%clk 00:42:08]} {[%emt 00:00:02]} 18. dxe5
{[%clk 00:31:37]} {[%emt 00:00:11]} Bxf1 {[%clk 00:42:16]} {[%emt 00:00:03]} 19.
Kxf1 {[%clk 00:28:59]} {[%emt 00:02:47]} Bxh4 {[%clk 00:42:23]} {[%emt
00:00:03]} 20. g3 {[%clk 00:28:37]} {[%emt 00:00:32]} Be7 {[%clk 00:42:23]}
{[%emt 00:00:10]} 21. f4 {[%clk 00:28:33]} {[%emt 00:00:14]} Bc5 {[%clk
00:41:53]} {[%emt 00:00:39]} 22. a4 {[%clk 00:27:34]} {[%emt 00:01:10]} Rad8
{[%clk 00:39:37]} {[%emt 00:02:26]} 23. Be1 {[%clk 00:26:52]} {[%emt 00:00:52]}
a5 {[%clk 00:39:21]} {[%emt 00:00:26]} 24. Kg2 {[%clk 00:26:18]} {[%emt
00:00:44]} f6 {[%clk 00:37:49]} {[%emt 00:01:41]} 25. Bb3+ {[%clk 00:25:24]}
{[%emt 00:01:05]} Kg7 {[%clk 00:37:47]} {[%emt 00:00:12]} 26. exf6+ {[%clk
00:24:50]} {[%emt 00:00:45]} Kxf6 {[%clk 00:37:54]} {[%emt 00:00:02]} 27. g4
{[%clk 00:24:21]} {[%emt 00:00:38]} Rd3 {[%clk 00:37:10]} {[%emt 00:00:55]} 28.
Bc4 {[%clk 00:23:35]} {[%emt 00:00:57]} Rd6 {[%clk 00:35:31]} {[%emt 00:01:48]}
29. b4 {[%clk 00:21:29]} {[%emt 00:02:16]} Bb6 {[%clk 00:34:38]} {[%emt
00:01:04]} 30. Rb1 {[%clk 00:19:51]} {[%emt 00:01:48]} Re4 {[%clk 00:33:44]}
{[%emt 00:01:04]} 31. Bf1 {[%clk 00:16:42]} {[%emt 00:03:19]} axb4 {[%clk
00:33:02]} {[%emt 00:00:52]} 32. cxb4 {[%clk 00:16:11]} {[%emt 00:00:42]} Ne6
{[%clk 00:33:06]} {[%emt 00:00:06]} 33. Bc3+ {[%clk 00:14:28]} {[%emt
00:01:52]} Bd4 {[%clk 00:32:41]} {[%emt 00:00:35]} 34. Rd1 {[%clk 00:13:36]}
{[%emt 00:01:02]} Nxf4+ {[%clk 00:32:20]} {[%emt 00:00:31]} 35. Kh1 {[%clk
00:12:54]} {[%emt 00:00:52]} Ke5 {[%clk 00:32:19]} {[%emt 00:00:11]} 36. Be1
{[%clk 00:12:43]} {[%emt 00:00:20]} Bf2 {[%clk 00:31:12]} {[%emt 00:01:17]} 37.
Rxd6 {[%clk 00:12:20]} {[%emt 00:00:35]} Rxe1 {[%clk 00:31:20]} {[%emt
00:00:02]} 38. Rd7 {[%clk 00:12:02]} {[%emt 00:00:25]} Rxf1+ {[%clk 00:31:23]}
{[%emt 00:00:09]} 39. Kh2 {[%clk 00:12:07]} {[%emt 00:00:05]} Ke4 {[%clk
00:30:28]} 0-1

[Event "Skol-SM i Schack 2024, Grupp A"]
[Site "Arena Varberg, Kattegattsvagen 26, Varberg, Sweden"]
[Date "2024.10.11"]
[Round "2.8"]
[White "Emanuelsson, Aron"]
[Black "Walter, Fridolf"]
[Result "0-1"]
[TimeControl "45 minutes + 10 seconds per move from move one."]
[WhiteFideId "1780069"]
[BlackFideId "1753347"]
[WhiteElo "1720"]
[BlackElo "1708"]

1. d4 {[%clk 00:45:17]} {[%emt 00:00:02]} d5 {[%clk 00:45:16]} {[%emt
00:00:05]} 2. c4 {[%clk 00:45:24]} {[%emt 00:00:04]} e6 {[%clk 00:45:22]}
{[%emt 00:00:04]} 3. Nc3 {[%clk 00:45:33]} {[%emt 00:00:01]} Nf6 {[%clk
00:44:48]} {[%emt 00:00:44]} 4. cxd5 {[%clk 00:45:41]} {[%emt 00:00:01]} exd5
{[%clk 00:44:48]} {[%emt 00:00:09]} 5. Bg5 {[%clk 00:45:50]} {[%emt 00:00:02]}
Nbd7 {[%clk 00:43:53]} {[%emt 00:01:06]} 6. e3 {[%clk 00:45:54]} {[%emt
00:00:06]} c6 {[%clk 00:43:31]} {[%emt 00:00:32]} 7. Bd3 {[%clk 00:46:02]}
{[%emt 00:00:01]} Qa5 {[%clk 00:40:51]} {[%emt 00:02:50]} 8. Qc2 {[%clk
00:45:45]} {[%emt 00:00:27]} Bd6 {[%clk 00:40:08]} {[%emt 00:00:52]} 9. Nf3
{[%clk 00:45:53]} {[%emt 00:00:04]} O-O {[%clk 00:39:26]} {[%emt 00:00:52]} 10.
O-O {[%clk 00:46:00]} {[%emt 00:00:02]} Re8 {[%clk 00:38:53]} {[%emt 00:00:42]}
11. a3 {[%clk 00:45:34]} {[%emt 00:00:37]} h6 {[%clk 00:35:45]} {[%emt
00:03:18]} 12. Bh4 {[%clk 00:45:29]} {[%emt 00:00:15]} Qc7 {[%clk 00:34:11]}
{[%emt 00:01:44]} 13. Rfc1 {[%clk 00:45:12]} {[%emt 00:00:27]} a6 {[%clk
00:32:21]} {[%emt 00:02:00]} 14. b4 {[%clk 00:44:18]} {[%emt 00:01:04]} b5
{[%clk 00:30:21]} {[%emt 00:02:10]} 15. Bxf6 {[%clk 00:39:13]} {[%emt
00:05:15]} Nxf6 {[%clk 00:30:00]} {[%emt 00:00:30]} 16. h3 {[%clk 00:38:12]}
{[%emt 00:01:12]} Be6 {[%clk 00:27:40]} {[%emt 00:02:30]} 17. e4 {[%clk
00:36:37]} {[%emt 00:01:45]} dxe4 {[%clk 00:26:54]} {[%emt 00:00:56]} 18. Nxe4
{[%clk 00:36:45]} {[%emt 00:00:03]} Nxe4 {[%clk 00:26:30]} {[%emt 00:00:33]} 19.
Bxe4 {[%clk 00:36:52]} {[%emt 00:00:03]} Bc4 {[%clk 00:26:22]} {[%emt
00:00:18]} 20. Nd2 {[%clk 00:36:38]} {[%emt 00:00:25]} Bh2+ {[%clk 00:25:45]}
{[%emt 00:00:46]} 21. Kh1 {[%clk 00:36:35]} {[%emt 00:00:13]} Bf4 {[%clk
00:25:45]} {[%emt 00:00:10]} 22. Bd3 {[%clk 00:33:30]} {[%emt 00:03:15]} Bd5
{[%clk 00:20:11]} {[%emt 00:05:44]} 23. Re1 {[%clk 00:33:37]} {[%emt 00:00:02]}
Qd7 {[%clk 00:19:30]} {[%emt 00:00:51]} 24. Kg1 {[%clk 00:33:19]} {[%emt
00:00:29]} g6 {[%clk 00:18:06]} {[%emt 00:01:33]} 25. Ne4 {[%clk 00:32:24]}
{[%emt 00:01:06]} Kg7 {[%clk 00:17:28]} {[%emt 00:00:48]} 26. Nc5 {[%clk
00:32:17]} {[%emt 00:00:17]} Qd8 {[%clk 00:17:00]} {[%emt 00:00:38]} 27. Be4
{[%clk 00:31:27]} {[%emt 00:01:00]} Qg5 {[%clk 00:15:18]} {[%emt 00:01:51]} 28.
Bxd5 {[%clk 00:30:18]} {[%emt 00:01:20]} Qxd5 {[%clk 00:14:18]} {[%emt
00:01:10]} 29. Qc3 {[%clk 00:29:46]} {[%emt 00:00:42]} Bg5 {[%clk 00:13:43]}
{[%emt 00:00:45]} 30. Rxe8 {[%clk 00:28:31]} {[%emt 00:01:25]} Rxe8 {[%clk
00:13:36]} {[%emt 00:00:17]} 31. Nxa6 {[%clk 00:28:32]} {[%emt 00:00:09]} Re4
{[%clk 00:12:46]} {[%emt 00:00:58]} 32. Rd1 {[%clk 00:28:15]} {[%emt 00:00:29]}
Bf6 {[%clk 00:12:27]} {[%emt 00:00:30]} 33. Qc5 {[%clk 00:26:00]} {[%emt
00:02:25]} Qb3 {[%clk 00:10:05]} {[%emt 00:02:30]} 34. Rf1 {[%clk 00:25:25]}
{[%emt 00:00:46]} Qxa3 {[%clk 00:08:36]} {[%emt 00:01:38]} 35. Qxc6 {[%clk
00:25:24]} {[%emt 00:00:11]} Re6 {[%clk 00:08:10]} {[%emt 00:00:36]} 36. Qxb5
{[%clk 00:24:34]} {[%emt 00:01:02]} Qxa6 {[%clk 00:06:43]} {[%emt 00:01:37]} 37.
Qc5 {[%clk 00:24:09]} {[%emt 00:00:35]} Qd3 {[%clk 00:05:58]} {[%emt 00:00:55]}
38. b5 {[%clk 00:21:35]} {[%emt 00:02:44]} Bxd4 {[%clk 00:05:46]} {[%emt
00:00:21]} 39. Qb4 {[%clk 00:21:11]} {[%emt 00:00:34]} Bc3 {[%clk 00:05:31]}
{[%emt 00:00:24]} 40. Qb3 {[%clk 00:21:00]} {[%emt 00:00:22]} Qxf1+ {[%clk
00:05:22]} {[%emt 00:00:19]} 41. Kh2 {[%clk 00:20:58]} {[%emt 00:00:13]} Be5+
{[%clk 00:05:16]} {[%emt 00:00:14]} 42. g3 {[%clk 00:21:00]} {[%emt 00:00:09]}
Qxf2+ {[%clk 00:05:16]} {[%emt 00:00:10]} 0-1